fUST/lending_fUST_20260608
["ID","MTS","AMOUNT","RATE_DAILY","PERIOD"]
[424424787,1780873838000,-500.0,0.00016029,2]
[424424786,1780873838000,-500.0,0.00016029,2]
[424424776,1780873838000,-500.0,0.00016029,2]
[424424840,1780873839000,-193.86757875,0.00017289,2]
[424424844,1780873839000,-151.0,0.00017292,2]
[424424846,1780873839000,-1009.3213471,0.00017302,2]
[424424876,1780873839000,-500.0,0.00017729,2]
[424424850,1780873839000,-38675.1903538,0.00017302,2]
[424424854,1780873839000,-500.0,0.00017399,2]
[424424863,1780873839000,-500.0,0.00017729,2]
[424424865,1780873839000,-500.0,0.00017729,2]
[424424860,1780873839000,-637.26772582,0.00017673,2]
[424424858,1780873839000,-1377.8522379,0.00017492,2]
[424424861,1780873839000,-500.0,0.00017729,2]
[424424842,1780873839000,-870.5516993,0.00017292,2]
[424424856,1780873839000,-1902.3756563,0.00017492,2]
[424424848,1780873839000,-3132.3329775,0.00017302,2]
[424424815,1780873839000,-500.0,0.00016029,2]
[424424836,1780873839000,-203.24909842,0.00017229,2]
[424424829,1780873839000,-224.99008036,0.00016871,2]
[424424838,1780873839000,-160.5669078,0.00017288,2]
[424424834,1780873839000,-500.0,0.00017125,2]
[424424833,1780873839000,-162.37412746,0.00017025,7]
[424424831,1780873839000,-190.34651691,0.00016936,2]
[424424823,1780873839000,-500.0,0.00016303,2]
[424424821,1780873839000,-500.0,0.00016029,2]
[424424825,1780873839000,-500.0,0.00016577,2]
[424424819,1780873839000,-499.99999999,0.00016029,2]
[424424817,1780873839000,-264.85795074,0.00016029,2]
[424424827,1780873839000,-500.0,0.00016851,2]
[424424813,1780873839000,-500.0,0.00016029,2]
[424424867,1780873839000,-500.0,0.00017729,2]
[424424852,1780873839000,-152.0,0.00017389,7]
[424424878,1780873839000,-501.73542076,0.00017729,2]
[424424893,1780873839000,-3682.45785753,0.00018423,2]
[424424874,1780873839000,-500.0,0.00017729,2]
[424424940,1780873839000,-63762.72033321,0.00019,2]
[424424937,1780873839000,-4297.71178899,0.00018999,2]
[424424932,1780873839000,-4331.88962841,0.00018999,2]
[424424930,1780873839000,-698.9179589,0.00018999,2]
[424424928,1780873839000,-40.3655567,0.00018994,2]
[424424923,1780873839000,-559.6344433,0.00018994,2]
[424424921,1780873839000,-230.6641412,0.0001899,2]
[424424919,1780873839000,-444.0,0.00018953,2]
[424424915,1780873839000,-743.0,0.00018953,2]
[424424911,1780873839000,-196.14360037,0.00018536,2]
[424424909,1780873839000,-181.009852,0.00018536,2]
[424424917,1780873839000,-186.0,0.00018953,2]
[424424905,1780873839000,-212.74645051,0.00018536,2]
[424424907,1780873839000,-219.37370379,0.00018536,2]
[424424913,1780873839000,-204.13493927,0.00018744,2]
[424424897,1780873839000,-142710.00804075,0.00018523,2]
[424424901,1780873839000,-179.16648547,0.00018529,2]
[424424870,1780873839000,-500.0,0.00017729,2]
[424424881,1780873839000,-243.56119121,0.00018026,7]
[424424879,1780873839000,-300.0,0.0001784,2]
[424424890,1780873839000,-190.652,0.0001833,2]
[424424883,1780873839000,-482.5321779,0.00018232,2]
[424424872,1780873839000,-500.0,0.00017729,2]
[424424885,1780873839000,-289.37481,0.00018321,2]
[424424888,1780873839000,-197.94833423,0.0001833,2]
[424424899,1780873839000,-163.60953812,0.00018529,2]
[424424903,1780873839000,-158.71718775,0.00018529,2]
[424424869,1780873839000,-500.0,0.00017729,2]
[424424891,1780873839000,-342.62373045,0.00018399,2]
[424424895,1780873839000,-193.86757874,0.00018423,2]
[424425439,1780873843000,-530.15175342,0.00019,2]
[424425647,1780873846000,-2656.02754636,0.00019,2]
[424426111,1780874527000,61.61514619,7.6e-05,2]
[424426109,1780874527000,938.38485381,7.6e-05,2]
[424426110,1780874527000,1000.0,7.6e-05,2]
[424426116,1780874720000,2445.00898316,0.00023287,120]
[424426120,1780874755000,-1188.18493369,0.00014555,2]
[424426118,1780874755000,-500.0,0.00014554,2]
[424426119,1780874755000,-626.56204118,0.00014554,2]
[424426122,1780874843000,-460.70378019,0.00014122,2]
[424426123,1780874847000,-1021.10855411,0.00014122,2]
[424426166,1780875032000,-4073.23747022,0.00013703,2]
[424426169,1780875032000,-311.82392788,0.00013841,2]
[424426167,1780875032000,-454.06581422,0.00013703,2]
[424426168,1780875032000,-4545.93418578,0.00013841,2]
[424426543,1780875046000,-400.0,0.00013702,2]
[424426544,1780875046000,-100.0,0.00013702,2]
[424426549,1780875046000,-142.24188634,0.00013841,2]
[424426548,1780875046000,-584.2510255,0.00013702,2]
[424426553,1780875046000,-500.0,0.0001412,2]
[424426551,1780875046000,-1602.12387162,0.00013981,2]
[424426552,1780875046000,-274.46031896,0.0001412,2]
[424426556,1780875046000,-500.0,0.0001412,2]
[424426554,1780875046000,-500.0,0.0001412,2]
[424426559,1780875046000,-300.0,0.00014121,2]
[424426546,1780875046000,-500.0,0.00013702,2]
[424426557,1780875046000,-500.0,0.0001412,2]
[424426558,1780875046000,-234.01943527,0.0001412,2]
[424426561,1780875046000,-300.0,0.00014121,2]
[424426564,1780875046000,-157.49305625,0.00015122,2]
[424426563,1780875046000,-282.56582626,0.00015,2]
[424426562,1780875046000,-976.42822437,0.000147,2]
[424426566,1780875046000,-155.21875911,0.00016807,2]
[424426568,1780875046000,-155.21875911,0.00017327,2]
[424426567,1780875046000,-179.80221756,0.00017269,2]
[424426565,1780875046000,-1000.0,0.00016749,2]
[424426569,1780875046000,-21.77662057,0.00017388,2]
[424426555,1780875046000,-500.0,0.0001412,2]
[424426600,1780875948000,-1716.11444316,0.00014386,2]
[424426599,1780875948000,-473.20452025,0.00014242,2]
[424426602,1780875948000,-290.54491496,0.0001453,2]
[424426601,1780875948000,-500.0,0.0001453,2]
[424426604,1780876051000,-1700.56000778,0.00014385,2]
[424426605,1780876053000,-1092.60109697,0.00014385,2]
[424426614,1780876231000,-520.3685055,0.0001528,2]
[424426612,1780876231000,-4481.38392423,0.00014241,2]
[424426610,1780876231000,-518.61607577,0.00014241,2]
[424426631,1780876231000,-344.4630595,0.00017214,2]
[424426624,1780876231000,-500.0,0.00016848,2]
[424426618,1780876231000,-185.69657161,0.00015527,2]
[424426622,1780876231000,-652.7317321,0.00016803,2]
[424426616,1780876231000,-344.4630595,0.0001528,2]
[424426625,1780876231000,-385.48297676,0.00016848,2]
[424426629,1780876231000,-210.65343339,0.00016942,2]
[424426627,1780876231000,-520.3685055,0.00016849,2]
[424426633,1780876231000,-179.80221756,0.00017269,2]
[424426620,1780876231000,-320.34465899,0.00016725,2]
[424426642,1780876231000,-240.84242099,0.00018201,2]
[424426641,1780876231000,-200.0,0.00017874,2]
[424426652,1780876231000,-896.515803,0.00018381,2]
[424426651,1780876231000,-1925.40993151,0.00018381,2]
[424426649,1780876231000,-500.0,0.00018201,2]
[424426648,1780876231000,-500.0,0.00018201,2]
[424426646,1780876231000,-500.0,0.00018201,2]
[424426650,1780876231000,-442.305608,0.00018202,2]
[424426636,1780876231000,-160.0,0.00017668,2]
[424426644,1780876231000,-500.0,0.00018201,2]
[424426647,1780876231000,-393.310097,0.00018201,2]
[424426640,1780876231000,-266.60783401,0.00017874,2]
[424426638,1780876231000,-154.49155178,0.00017874,2]
[424426635,1780876231000,-2169.56103546,0.000176,2]
[424426682,1780876238000,-3284.2641615,0.00018381,2]
[424426683,1780876238000,-1285.10008273,0.00018381,2]
[424426678,1780876238000,-2173.32577378,0.00018381,2]
[424426675,1780876238000,-500.0,0.00017873,2]
[424426680,1780876238000,-1038.70338955,0.00018381,2]
[424426673,1780876238000,-168.58969469,0.00017873,2]
[424426676,1780876238000,-175.3170679,0.00017873,2]
[424426674,1780876238000,-500.0,0.00017873,2]
[424426681,1780876238000,-639.34187099,0.00018381,2]
[424426677,1780876238000,-500.0,0.00017873,2]
[424426679,1780876238000,-6658.15151329,0.00018381,2]
[424426699,1780876240000,-581.59161548,0.00018381,2]
[424426698,1780876240000,-1662.54163905,0.00018381,2]
[424426697,1780876240000,-363.632055,0.00018381,2]
[424426706,1780876243000,-19164.18977073,0.00018381,2]
[424426705,1780876243000,-1029.17272304,0.00018381,2]
[424426709,1780876246000,-1257.029997,0.00018381,2]
[424426708,1780876246000,-25523.5169904,0.00018381,2]
[424426707,1780876246000,-5000.0,0.00018198,2]
[424426715,1780876930000,-878.8225944,0.00016578,2]
[424426716,1780876947000,-2438.27412053,0.00016695,2]
[424426717,1780876964000,-878.8225944,0.00016695,2]
[424426720,1780877131000,-1371.12986021,0.00016259,2]
[424426721,1780877238000,-1362.21237609,0.0001578,2]
[424426722,1780877239000,-749.55946425,0.0001578,2]
[424426723,1780877251000,-866.64672984,0.0001578,2]
[424426794,1780877432000,-5584.22876817,0.0001594,2]
[424426784,1780877432000,-9925.11756773,0.00015759,2]
[424426782,1780877432000,-522.11789825,0.00015759,2]
[424426780,1780877432000,-362.9448186,0.00015759,2]
[424426764,1780877432000,-500.0,0.00015758,2]
[424426778,1780877432000,-232.28468391,0.00015759,2]
[424426763,1780877432000,-303.0,0.00015601,2]
[424426761,1780877432000,-4123.95993149,0.00015445,2]
[424426776,1780877432000,-1863.53046989,0.00015759,2]
[424426786,1780877432000,-1172.00181023,0.0001594,2]
[424426774,1780877432000,-1370.49492178,0.00015759,2]
[424426759,1780877432000,-876.04006851,0.00015445,2]
[424426772,1780877432000,-951.73258457,0.00015759,2]
[424426770,1780877432000,-609.10885413,0.00015759,2]
[424426766,1780877432000,-500.0,0.00015758,2]
[424426798,1780877432000,-2260.60710872,0.00016864,2]
[424426818,1780877432000,-1040.7370113,0.00017911,2]
[424426800,1780877432000,-428.187898,0.00016916,2]
[424426825,1780877432000,-3633.93674046,0.000181,2]
[424426827,1780877432000,-2347.97246076,0.000181,2]
[424426768,1780877432000,-172.72194753,0.00015758,2]
[424426822,1780877432000,-152.0,0.00018031,7]
[424426823,1780877432000,-173.52244332,0.00018096,2]
[424426817,1780877432000,-422.63830972,0.000178,2]
[424426811,1780877432000,-366.78023799,0.00017628,2]
[424426815,1780877432000,-422.63830972,0.000177,2]
[424426820,1780877432000,-422.63830972,0.00018,2]
[424426809,1780877432000,-500.0,0.00017461,2]
[424426808,1780877432000,-500.0,0.00017461,2]
[424426806,1780877432000,-179.82017982,0.00017269,2]
[424426804,1780877432000,-172.602,0.00016999,2]
[424426790,1780877432000,-2509.0502069,0.0001594,2]
[424426802,1780877432000,-161.945897,0.00016999,2]
[424426796,1780877432000,-12713.92119488,0.00016864,2]
[424426813,1780877432000,-61.40766001,0.00017628,2]
[424426830,1780877440000,-688.926119,0.00017306,2]
[424426831,1780877440000,-2058.91187097,0.000181,2]
[424426864,1780877443000,-500.0,0.00015444,2]
[424426865,1780877443000,-519.82315148,0.00015444,2]
[424426867,1780877443000,-500.0,0.00015444,2]
[424426866,1780877443000,-500.0,0.00015444,2]
[424426872,1780877443000,-4109.19561492,0.00017133,2]
[424426869,1780877443000,-500.0,0.00015444,2]
[424426870,1780877443000,-500.0,0.00015444,2]
[424426871,1780877443000,-500.0,0.00015444,2]
[424426868,1780877443000,-500.0,0.00015444,2]
[424426881,1780877748000,500.0,0.00024983,30]
[424426882,1780877753000,522.0792841,0.00024983,30]
[424426891,1780878249000,-151.0,0.00011271,2]
[424426892,1780878266000,-151.0,0.00011271,2]
[424426893,1780878279000,-151.0,0.00011271,2]
[424426894,1780878291000,-151.0,0.00011271,2]
[424426895,1780878305000,-151.0,0.00011271,2]
[424426896,1780878318000,-209.10338945,0.0001127,2]
[424426897,1780878331000,-209.10338945,0.0001127,2]
[424426901,1780878343000,-626.56204118,0.0001127,2]
[424426902,1780878343000,-237.2546066,0.0001127,2]
[424426900,1780878343000,-500.0,0.0001127,2]
[424426899,1780878343000,-500.0,0.0001127,2]
[424426898,1780878343000,-81.7932211,0.0001127,2]
[424426903,1780878343000,-356.56861563,0.00011271,2]
[424426905,1780878426000,-501.29807515,0.00011271,2]
[424426908,1780878447000,-1055.21893631,0.00011271,2]
[424426914,1780878555000,-4771.90495387,0.000115,2]
[424426912,1780878555000,-500.0,0.00011499,2]
[424426913,1780878555000,-320.90536327,0.00011499,2]
[424426911,1780878555000,-5000.0,0.00011271,2]
[424426910,1780878555000,-1113.48025653,0.00011271,2]
[424426909,1780878555000,-160.0,0.0001127,2]
[424426916,1780878566000,-3602.66924837,0.000115,2]
[424426917,1780878568000,-8886.68764205,0.000115,2]
[424426918,1780878570000,-1708.98994031,0.000115,2]
[424426960,1780878632000,-6983.0479625,0.000115,2]
[424426958,1780878632000,-5000.0,0.00011385,2]
[424427126,1780878638000,-500.0,0.00016438,2]
[424427128,1780878638000,-1642.28,0.00016438,2]
[424427134,1780878638000,-399.43742446,0.00016438,2]
[424427124,1780878638000,-172.2680074,0.00016338,2]
[424427132,1780878638000,-100.56257554,0.00016438,2]
[424427130,1780878638000,-500.0,0.00016438,2]
[424427106,1780878638000,-300.0,0.00011729,2]
[424427120,1780878638000,-3865.1130733,0.00015516,2]
[424427110,1780878638000,-300.0,0.00011729,2]
[424427118,1780878638000,-864.0,0.00014475,2]
[424427116,1780878638000,-720.0,0.00013159,2]
[424427112,1780878638000,-300.0,0.00011729,2]
[424427108,1780878638000,-300.0,0.00011729,2]
[424427122,1780878638000,-1000.0,0.00015922,2]
[424427114,1780878638000,-600.0,0.00011963,2]
[424427104,1780878638000,-300.0,0.00011729,2]
[424427099,1780878638000,-300.0,0.00011729,2]
[424427097,1780878638000,-300.0,0.00011729,2]
[424427093,1780878638000,-300.0,0.00011729,2]
[424427095,1780878638000,-300.0,0.00011729,2]
[424427086,1780878638000,-300.0,0.00011729,2]
[424427088,1780878638000,-300.0,0.00011729,2]
[424427091,1780878638000,-300.0,0.00011729,2]
[424427090,1780878638000,-300.0,0.00011729,2]
[424427080,1780878638000,-2099.02828019,0.000115,2]
[424427084,1780878638000,-300.0,0.00011729,2]
[424427082,1780878638000,-7284.07220175,0.000115,2]
[424427136,1780878638000,-500.0,0.00016438,2]
[424427102,1780878638000,-300.0,0.00011729,2]
[424427138,1780878638000,-631.67,0.00016438,2]
[424427179,1780878638000,-3391.02,0.00016438,2]
[424427142,1780878638000,-560.79,0.00016438,2]
[424427140,1780878638000,-697.93,0.00016438,2]
[424427185,1780878638000,-500.0,0.00016438,2]
[424427181,1780878638000,-500.0,0.00016438,2]
[424427197,1780878638000,-3361.68,0.00016438,2]
[424427183,1780878638000,-1200.66,0.00016438,2]
[424427195,1780878638000,-844.36,0.00016438,2]
[424427189,1780878638000,-4590.8,0.00016438,2]
[424427191,1780878638000,-3809.75,0.00016438,2]
[424427193,1780878638000,-754.79,0.00016438,2]
[424427178,1780878638000,-500.0,0.00016438,2]
[424427187,1780878638000,-2387.2,0.00016438,2]
[424427175,1780878638000,-819.42,0.00016438,2]
[424427172,1780878638000,-2454.27,0.00016438,2]
[424427173,1780878638000,-500.0,0.00016438,2]
[424427199,1780878638000,-500.0,0.00016438,2]
[424427158,1780878638000,-500.0,0.00016438,2]
[424427170,1780878638000,-500.0,0.00016438,2]
[424427146,1780878638000,-500.0,0.00016438,2]
[424427160,1780878638000,-500.0,0.00016438,2]
[424427148,1780878638000,-3152.96,0.00016438,2]
[424427150,1780878638000,-5708.49,0.00016438,2]
[424427168,1780878638000,-1313.63,0.00016438,2]
[424427164,1780878638000,-2647.81,0.00016438,2]
[424427154,1780878638000,-500.0,0.00016438,2]
[424427144,1780878638000,-500.0,0.00016438,2]
[424427152,1780878638000,-500.0,0.00016438,2]
[424427162,1780878638000,-500.0,0.00016438,2]
[424427166,1780878638000,-4541.06,0.00016438,2]
[424427156,1780878638000,-500.0,0.00016438,2]
[424427297,1780878639000,-177.94464175,0.00016712,2]
[424427295,1780878639000,-1200.66,0.00016712,2]
[424427283,1780878639000,-2454.27,0.00016712,2]
[424427291,1780878639000,-3391.02,0.00016712,2]
[424427263,1780878639000,-500.0,0.00016712,2]
[424427293,1780878639000,-500.0,0.00016712,2]
[424427279,1780878639000,-4541.06,0.00016712,2]
[424427281,1780878639000,-500.0,0.00016712,2]
[424427277,1780878639000,-1313.63,0.00016712,2]
[424427285,1780878639000,-500.0,0.00016712,2]
[424427273,1780878639000,-2647.81,0.00016712,2]
[424427289,1780878639000,-379.24848062,0.00016712,2]
[424427287,1780878639000,-819.42,0.00016712,2]
[424427311,1780878639000,-500.0,0.00016712,2]
[424427302,1780878639000,-3809.75,0.00016712,2]
[424427304,1780878639000,-754.79,0.00016712,2]
[424427300,1780878639000,-4590.8,0.00016712,2]
[424427306,1780878639000,-844.36,0.00016712,2]
[424427308,1780878639000,-3361.68,0.00016712,2]
[424427319,1780878639000,-8788.22,0.00016712,2]
[424427316,1780878639000,-500.0,0.00016712,2]
[424427313,1780878639000,-8421.31,0.00016712,2]
[424427315,1780878639000,-6671.91,0.00016712,2]
[424427322,1780878639000,-2591.18,0.00016712,2]
[424427325,1780878639000,-550.52,0.00016712,2]
[424427326,1780878639000,-5084.71,0.00016712,2]
[424427259,1780878639000,-500.0,0.00016712,2]
[424427331,1780878639000,-500.0,0.00016712,2]
[424427298,1780878639000,-2387.2,0.00016712,2]
[424427257,1780878639000,-500.0,0.00016712,2]
[424427245,1780878639000,-697.93,0.00016712,2]
[424427261,1780878639000,-500.0,0.00016712,2]
[424427328,1780878639000,-1284.59,0.00016712,2]
[424427213,1780878639000,-550.52,0.00016438,2]
[424427201,1780878639000,-8421.31,0.00016438,2]
[424427205,1780878639000,-500.0,0.00016438,2]
[424427219,1780878639000,-500.0,0.00016438,2]
[424427215,1780878639000,-5084.71,0.00016438,2]
[424427203,1780878639000,-6671.91,0.00016438,2]
[424427217,1780878639000,-1284.59,0.00016438,2]
[424427207,1780878639000,-8788.22,0.00016438,2]
[424427209,1780878639000,-2476.34,0.00016438,2]
[424427211,1780878639000,-2591.18,0.00016438,2]
[424427221,1780878639000,-528.98,0.00016438,2]
[424427223,1780878639000,-4348.61,0.00016438,2]
[424427225,1780878639000,-500.0,0.00016438,2]
[424427239,1780878639000,-500.0,0.00016712,2]
[424427241,1780878639000,-500.0,0.00016712,2]
[424427243,1780878639000,-631.67,0.00016712,2]
[424427247,1780878639000,-560.79,0.00016712,2]
[424427229,1780878639000,-833.22,0.00016438,2]
[424427227,1780878639000,-1719.33,0.00016438,2]
[424427233,1780878639000,-172.2680074,0.00016544,2]
[424427249,1780878639000,-500.0,0.00016712,2]
[424427231,1780878639000,-1753.8918521,0.00016459,2]
[424427251,1780878639000,-500.0,0.00016712,2]
[424427253,1780878639000,-3152.96,0.00016712,2]
[424427235,1780878639000,-500.0,0.00016712,2]
[424427237,1780878639000,-1642.28,0.00016712,2]
[424427267,1780878639000,-500.0,0.00016712,2]
[424427255,1780878639000,-5708.49,0.00016712,2]
[424427265,1780878639000,-500.0,0.00016712,2]
[424427345,1780878639000,-172.2680074,0.00016955,2]
[424427320,1780878639000,-2476.34,0.00016712,2]
[424427333,1780878639000,-528.98,0.00016712,2]
[424427403,1780878639000,-2387.2,0.00016986,2]
[424427405,1780878639000,-4590.8,0.00016986,2]
[424427409,1780878639000,-754.79,0.00016986,2]
[424427415,1780878639000,-8421.31,0.00016986,2]
[424427411,1780878639000,-844.36,0.00016986,2]
[424427413,1780878639000,-3361.68,0.00016986,2]
[424427419,1780878639000,-500.0,0.00016986,2]
[424427421,1780878639000,-8788.22,0.00016986,2]
[424427427,1780878639000,-550.52,0.00016986,2]
[424427425,1780878639000,-2591.18,0.00016986,2]
[424427417,1780878639000,-6671.91,0.00016986,2]
[424427423,1780878639000,-2476.34,0.00016986,2]
[424427431,1780878639000,-1284.59,0.00016986,2]
[424427401,1780878639000,-1200.66,0.00016986,2]
[424427435,1780878639000,-528.98,0.00016986,2]
[424427433,1780878639000,-500.0,0.00016986,2]
[424427438,1780878639000,-4348.61,0.00016986,2]
[424427439,1780878639000,-500.0,0.00016986,2]
[424427441,1780878639000,-1719.33,0.00016986,2]
[424427444,1780878639000,-833.22,0.00016986,2]
[424427452,1780878639000,-500.0,0.0001726,2]
[424427450,1780878639000,-500.0,0.0001726,2]
[424427454,1780878639000,-631.67,0.0001726,2]
[424427448,1780878639000,-1642.28,0.0001726,2]
[424427446,1780878639000,-172.2680074,0.0001716,2]
[424427456,1780878639000,-697.93,0.0001726,2]
[424427461,1780878639000,-500.0,0.0001726,2]
[424427460,1780878639000,-500.0,0.0001726,2]
[424427429,1780878639000,-5084.71,0.00016986,2]
[424427397,1780878639000,-3391.02,0.00016986,2]
[424427458,1780878639000,-560.79,0.0001726,2]
[424427407,1780878639000,-3809.75,0.00016986,2]
[424427388,1780878639000,-500.0,0.00016986,2]
[424427341,1780878639000,-833.22,0.00016712,2]
[424427335,1780878639000,-4348.61,0.00016712,2]
[424427337,1780878639000,-500.0,0.00016712,2]
[424427339,1780878639000,-1719.33,0.00016712,2]
[424427349,1780878639000,-1642.28,0.00016986,2]
[424427351,1780878639000,-500.0,0.00016986,2]
[424427343,1780878639000,-172.2680074,0.00016749,2]
[424427463,1780878639000,-3152.96,0.0001726,2]
[424427353,1780878639000,-500.0,0.00016986,2]
[424427355,1780878639000,-631.67,0.00016986,2]
[424427357,1780878639000,-697.93,0.00016986,2]
[424427371,1780878639000,-500.0,0.00016986,2]
[424427373,1780878639000,-500.0,0.00016986,2]
[424427375,1780878639000,-500.0,0.00016986,2]
[424427347,1780878639000,-357.30895438,0.00016986,2]
[424427367,1780878639000,-5708.49,0.00016986,2]
[424427363,1780878639000,-500.0,0.00016986,2]
[424427395,1780878639000,-819.42,0.00016986,2]
[424427393,1780878639000,-500.0,0.00016986,2]
[424427391,1780878639000,-2454.27,0.00016986,2]
[424427382,1780878639000,-2647.81,0.00016986,2]
[424427384,1780878639000,-1313.63,0.00016986,2]
[424427399,1780878639000,-500.0,0.00016986,2]
[424427361,1780878639000,-500.0,0.00016986,2]
[424427386,1780878639000,-4541.06,0.00016986,2]
[424427365,1780878639000,-3152.96,0.00016986,2]
[424427359,1780878639000,-560.79,0.00016986,2]
[424427380,1780878639000,-500.0,0.00016986,2]
[424427378,1780878639000,-500.0,0.00016986,2]
[424427369,1780878639000,-500.0,0.00016986,2]
[424427538,1780878640000,-833.22,0.0001726,2]
[424427540,1780878640000,-260.97703785,0.00017285,2]
[424427542,1780878640000,-500.0,0.00017461,2]
[424427544,1780878640000,-500.0,0.00017461,2]
[424427546,1780878640000,-706.98,0.00017461,2]
[424427548,1780878640000,-500.0,0.00017461,2]
[424427550,1780878640000,-700.45,0.00017461,2]
[424427552,1780878640000,-1000.0,0.00017514,2]
[424427531,1780878640000,-528.98,0.0001726,2]
[424427533,1780878640000,-4348.61,0.0001726,2]
[424427534,1780878640000,-500.0,0.0001726,2]
[424427529,1780878640000,-500.0,0.0001726,2]
[424427561,1780878640000,-500.0,0.00017534,2]
[424427556,1780878640000,-1642.28,0.00017534,2]
[424427554,1780878640000,-244.0,0.00017514,2]
[424427566,1780878640000,-560.79,0.00017534,2]
[424427562,1780878640000,-631.67,0.00017534,2]
[424427527,1780878640000,-1284.59,0.0001726,2]
[424427564,1780878640000,-697.93,0.00017534,2]
[424427568,1780878640000,-500.0,0.00017534,2]
[424427558,1780878640000,-500.0,0.00017534,2]
[424427570,1780878640000,-500.0,0.00017534,2]
[424427574,1780878640000,-5708.49,0.00017534,2]
[424427572,1780878640000,-3152.96,0.00017534,2]
[424427576,1780878640000,-500.0,0.00017534,2]
[424427579,1780878640000,-500.0,0.00017534,2]
[424427536,1780878640000,-1719.33,0.0001726,2]
[424427525,1780878640000,-5084.71,0.0001726,2]
[424427503,1780878640000,-3809.75,0.0001726,2]
[424427521,1780878640000,-2591.18,0.0001726,2]
[424427581,1780878640000,-500.0,0.00017534,2]
[424427465,1780878640000,-5708.49,0.0001726,2]
[424427467,1780878640000,-500.0,0.0001726,2]
[424427479,1780878640000,-2647.81,0.0001726,2]
[424427477,1780878640000,-500.0,0.0001726,2]
[424427469,1780878640000,-500.0,0.0001726,2]
[424427481,1780878640000,-4541.06,0.0001726,2]
[424427483,1780878640000,-1313.63,0.0001726,2]
[424427485,1780878640000,-500.0,0.0001726,2]
[424427471,1780878640000,-500.0,0.0001726,2]
[424427473,1780878640000,-500.0,0.0001726,2]
[424427476,1780878640000,-500.0,0.0001726,2]
[424427487,1780878640000,-2454.27,0.0001726,2]
[424427491,1780878640000,-819.42,0.0001726,2]
[424427489,1780878640000,-500.0,0.0001726,2]
[424427494,1780878640000,-3391.02,0.0001726,2]
[424427507,1780878640000,-844.36,0.0001726,2]
[424427497,1780878640000,-1200.66,0.0001726,2]
[424427501,1780878640000,-4590.8,0.0001726,2]
[424427513,1780878640000,-6671.91,0.0001726,2]
[424427499,1780878640000,-2387.2,0.0001726,2]
[424427509,1780878640000,-3361.68,0.0001726,2]
[424427505,1780878640000,-754.79,0.0001726,2]
[424427511,1780878640000,-8421.31,0.0001726,2]
[424427517,1780878640000,-8788.22,0.0001726,2]
[424427515,1780878640000,-500.0,0.0001726,2]
[424427519,1780878640000,-2476.34,0.0001726,2]
[424427523,1780878640000,-550.52,0.0001726,2]
[424427495,1780878640000,-500.0,0.0001726,2]
[424427582,1780878640000,-377.72400027,0.00017534,2]
[424427587,1780878640000,-174.57294698,0.00017534,2]
[424427641,1780878640000,-4348.61,0.00017534,2]
[424427655,1780878640000,-500.0,0.00017735,2]
[424427639,1780878640000,-528.98,0.00017534,2]
[424427643,1780878640000,-500.0,0.00017534,2]
[424427660,1780878640000,-500.0,0.00017735,2]
[424427657,1780878640000,-500.0,0.00017735,2]
[424427659,1780878640000,-706.98,0.00017735,2]
[424427664,1780878640000,-169.05532389,0.000178,2]
[424427671,1780878640000,-500.0,0.00017808,2]
[424427669,1780878640000,-500.0,0.00017808,2]
[424427667,1780878640000,-1642.28,0.00017808,2]
[424427663,1780878640000,-700.45,0.00017735,2]
[424427673,1780878640000,-631.67,0.00017808,2]